fUST/lending_fUST_20251118
["ID","MTS","AMOUNT","RATE_DAILY","PERIOD"]
[394317423,1763445032075,-500.0,0.0003825,15]
[394317424,1763445032088,-191.99102929,0.0003825,15]
[394317427,1763445032098,-500.0,0.0003825,15]
[394317428,1763445032108,-500.0,0.0003825,15]
[394317431,1763445032117,-160.997,0.0003825,51]
[394317432,1763445032127,-552.79,0.000383,14]
[394317434,1763445032137,-163.83,0.000383,7]
[394317436,1763445032146,-3998.93,0.000383,14]
[394317438,1763445032155,-1055.45,0.000383,30]
[394317439,1763445032165,-154.271,0.00038628,120]
[394317440,1763445032174,-300.0,0.00039116,90]
[394317441,1763445032184,-300.0,0.00039116,90]
[394317443,1763445032193,-300.0,0.00039116,90]
[394317444,1763445032202,-300.0,0.00039116,90]
[394317445,1763445032212,-300.0,0.00039116,90]
[394317446,1763445032221,-300.0,0.00039116,90]
[394317447,1763445032230,-300.0,0.00039116,90]
[394317448,1763445032239,-300.0,0.00039116,90]
[394317449,1763445032248,-300.0,0.00039116,90]
[394317450,1763445032257,-300.0,0.00039116,90]
[394317451,1763445032267,-300.0,0.00039116,90]
[394317452,1763445032276,-300.0,0.00039116,90]
[394317453,1763445032285,-300.0,0.00039116,90]
[394317454,1763445032294,-300.0,0.00039116,90]
[394317455,1763445032303,-300.0,0.00039116,90]
[394317456,1763445032312,-151.368646,0.00039285,2]
[394317457,1763445032321,-164.580273,0.00039285,2]
[394317458,1763445032331,-195.725671,0.00039654,2]
[394317459,1763445032341,-256.70706284,0.00040842,2]
[394317460,1763445032350,-358.66722677,0.00043286,2]
[394317461,1763445032359,-810.22519242,0.00043286,2]
[394317462,1763445032368,-2300.65404294,0.00043329,28]
[394317463,1763445032378,-256.70706284,0.00043528,2]
[394317464,1763445032387,-1000.0,0.00043548,2]
[394317465,1763445032397,-688.59010983,0.00043548,2]
[394317466,1763445032406,-168.95353084,0.00043863,4]
[394317467,1763445032415,-715.62020175,0.00043863,4]
[394317468,1763445032424,-2000.0,0.000441,21]
[394317469,1763445032434,-501.76741586,0.00044248,30]
[394317470,1763445032443,-239.79731785,0.00044528,2]
[394317471,1763445032452,-151.368646,0.0004455,7]
[394317472,1763445032547,-164.580273,0.0004455,7]
[394317473,1763445032559,-1984.99590286,0.00045845,2]
[394317474,1763445032568,-189.2759924,0.00045972,2]
[394317475,1763445032578,-195.725671,0.00046143,2]
[394317476,1763445032588,-256.70706284,0.00046214,2]
[394317477,1763445032597,-155.75,0.000467,45]
[394317478,1763445032605,-3211.14185734,0.0004698,4]
[394317479,1763445032615,-2189004.40085739,0.00047,10]
[394317480,1763445032624,-1000.0,0.00047,120]
[394317481,1763445032632,-1000.0,0.00047,120]
[394317482,1763445032642,-1000.0,0.00047,120]
[394317483,1763445032650,-1000.0,0.00047,120]
[394317484,1763445032660,-1000.0,0.00047,120]
[394317485,1763445032669,-1000.0,0.00047,120]
[394317486,1763445032678,-20000.0,0.00047,120]
[394317487,1763445032687,-1000.0,0.00047,19]
[394317488,1763445032696,-781.03458432,0.00047,10]
[394317489,1763445032706,-154.196713,0.00047,120]
[394317490,1763445032715,-301.535046,0.00047,120]
[394317491,1763445032724,-301.535046,0.00047,120]
[394317492,1763445032734,-301.535046,0.00047,120]
[394317493,1763445032743,-301.535046,0.00047,120]
[394317495,1763445032753,-171.259007,0.00047,120]
[394317496,1763445032762,-154.146092,0.00047,120]
[394317497,1763445032772,-202.66,0.00047889,2]
[394317498,1763445032781,-600.0,0.00047939,90]
[394317499,1763445032790,-500.0,0.00047989,2]
[394317500,1763445032801,-3211.14185734,0.0004799,4]
[394317501,1763445032812,-20000.0,0.00048,120]
[394317502,1763445032822,-162.3,0.00048219,120]
[394317503,1763445032831,-1212.34879375,0.00048398,120]
[394317504,1763445032843,-2300.65404294,0.00048507,28]
[394317505,1763445032853,-800.0,0.0004855,120]
[394317506,1763445032863,-197.04954428,0.000487,120]
[394317507,1763445032872,-193.65278794,0.000489,120]
[394317508,1763445032881,-276.88724,0.000489,120]
[394317509,1763445032890,-445.35026077,0.000489,120]
[394317510,1763445032899,-256.70706284,0.000489,2]
[394317511,1763445032908,-7644.42668829,0.000489,2]
[394317512,1763445032917,-500.90490176,0.00048973,10]
[394317513,1763445032926,-503.30992201,0.00048973,10]
[394317514,1763445032935,-500.65944619,0.00048973,10]
[394317515,1763445032944,-182.94057288,0.00048973,10]
[394317516,1763445032954,-500.0,0.00048973,10]
[394317517,1763445032963,-170.30715398,0.00048973,10]
[394317518,1763445032974,-501.5573906,0.00048973,10]
[394317519,1763445032983,-504.79673771,0.00048973,10]
[394317520,1763445032994,-502.7392002,0.00048973,10]
[394317521,1763445033003,-500.0,0.00048973,10]
[394317522,1763445033012,-500.0,0.00048973,10]
[394317523,1763445033021,-500.0,0.00048973,10]
[394317524,1763445033030,-500.0,0.00048973,10]
[394317525,1763445033039,-500.0,0.00048973,7]
[394317526,1763445033049,-1000.0,0.0004899,120]
[394317527,1763445033058,-106909.76565623,0.00049,7]
[394317528,1763445033067,-730050.75885356,0.00049,7]
[394317529,1763445033076,-301.535046,0.00049,120]
[394317530,1763445033086,-301.535046,0.00049,120]
[394317531,1763445033095,-301.535046,0.00049,120]
[394317532,1763445033105,-301.535046,0.00049,120]
[394317533,1763445033114,-301.535046,0.00049,120]
[394317534,1763445033123,-301.535046,0.00049,120]
[394317535,1763445033132,-301.535046,0.00049,120]
[394317536,1763445033141,-301.535046,0.00049,120]
[394317537,1763445033150,-159.36316277,0.00049021,10]
[394317538,1763445033159,-300.0,0.00049205,80]
[394317539,1763445033169,-151.368646,0.00049311,30]
[394317540,1763445033178,-500.0,0.00049315,120]
[394317541,1763445033187,-151.0,0.00049315,120]
[394317542,1763445033196,-151.0,0.00049315,120]
[394317543,1763445033205,-507.37155566,0.00049418,60]
[394317544,1763445033214,-1000.0,0.00049521,10]
[394317545,1763445033223,-771.90932833,0.00049521,10]
[394317546,1763445033232,-922.77259646,0.00049521,10]
[394317547,1763445033241,-502.35121388,0.00049521,10]
[394317548,1763445033250,-617.19245736,0.00049521,10]
[394317549,1763445033260,-502.2241441,0.00049521,7]
[394317550,1763445033269,-500.0,0.0004978,120]
[394317551,1763445033278,-552.79,0.000498,14]
[394317552,1763445033288,-163.83,0.000498,14]
[394317553,1763445033297,-3998.93,0.000498,14]
[394317554,1763445033306,-1055.45,0.000498,30]
[394317555,1763445033315,-143623.84583678,0.0004987,30]
[394317556,1763445033326,-151.0,0.0004987,120]
[394317557,1763445033336,-301.535046,0.0004987,120]
[394317558,1763445033346,-301.535046,0.0004987,120]
[394317559,1763445033356,-301.535046,0.0004987,120]
[394317560,1763445033365,-301.535046,0.0004987,120]
[394317561,1763445033375,-302.98,0.0005,2]
[394317562,1763445033385,-222.31451986,0.0005,20]
[394317563,1763445033395,-199.0,0.0005,7]
[394317564,1763445033405,-192.68216843,0.0005,120]
[394317565,1763445033416,-277.64391498,0.0005,90]
[394317566,1763445033426,-158.05907729,0.0005,120]
[394317567,1763445033436,-953.16038782,0.0005,120]
[394317568,1763445033446,-200.0,0.0005,120]
[394317569,1763445033455,-1000.0,0.0005,120]
[394317570,1763445033465,-178.29643427,0.0005,120]
[394317571,1763445033476,-20000.0,0.0005,120]
[394317572,1763445033486,-658.19842557,0.0005,120]
[394317573,1763445033495,-453.54352333,0.0005,120]
[394317574,1763445033505,-1750.85629663,0.0005,3]
[394317575,1763445033515,-8000.0,0.0005,120]
[394317576,1763445033524,-335.40500238,0.0005,120]
[394317577,1763445033534,-19123.57178791,0.0005,30]
[394317579,1763445033543,-1000.0,0.00050068,10]
[394317580,1763445033553,-500.0,0.00050246,120]
[394317581,1763445033562,-500.0,0.00050712,120]
[394317583,1763445033570,-344.358,0.00050849,100]
[394317584,1763445033580,-1000.0,0.00051,120]
[394317585,1763445033591,-5502.63418325,0.00051,120]
[394317587,1763445033600,-189.526825,0.00051077,120]
[394317588,1763445033608,-500.0,0.00051178,120]
[394317589,1763445033616,-17456.144,0.0005144,30]
[394317591,1763445033625,-151.0,0.0005144,120]
[394317592,1763445033634,-301.535046,0.0005144,120]
[394317593,1763445033643,-301.535046,0.0005144,120]
[394317595,1763445033652,-301.535046,0.0005144,120]
[394317596,1763445033663,-301.53504924,0.0005144,120]
[394317597,1763445033672,-500.0,0.00051643,120]
[394317599,1763445033682,-400.0,0.00051671,90]
[394317600,1763445033691,-51397.66,0.000519,30]
[394317601,1763445033701,-242.934326,0.000519,120]
[394317603,1763445033710,-1000.0,0.00052,120]
[394317604,1763445033719,-2000.0,0.00052,54]
[394317605,1763445033729,-1966.6572,0.00052,120]
[394317607,1763445033738,-10000.0,0.00052,120]
[394317608,1763445033747,-1000.0,0.00052,120]
[394317610,1763445033756,-1000.0,0.00052,120]
[394317611,1763445033766,-1000.0,0.00052,120]
[394317612,1763445033776,-1000.0,0.00052,120]
[394317614,1763445033785,-500.0,0.00052109,120]
[394317615,1763445033794,-3000.0,0.000522,120]
[394317616,1763445033804,-3000.0,0.000522,120]
[394317617,1763445033813,-715.0,0.0005255,120]
[394317618,1763445033822,-500.0,0.00052575,120]
[394317619,1763445033832,-195.725671,0.00052632,2]
[394317620,1763445033841,-720.0,0.00052733,120]
[394317621,1763445033850,-151.0,0.000528,28]
[394317622,1763445033863,-3011.74146312,0.000528,23]
[394317623,1763445033871,-2514.68760478,0.00052854,120]
[394317624,1763445033881,-552.79,0.000529,14]
[394317625,1763445033890,-163.83,0.000529,14]
[394317626,1763445033899,-3998.93,0.000529,14]
[394317627,1763445033908,-1018.0,0.00053,120]
[394317628,1763445033918,-1000.0,0.00053,120]
[394317629,1763445033927,-2037.0,0.00053,56]
[394317630,1763445033936,-10000.0,0.00053,120]
[394317631,1763445033946,-580.94105803,0.00053041,120]
[394317632,1763445033959,-500.0,0.00053146,60]
[394317633,1763445033969,-3000.0,0.000532,120]
[394317634,1763445033979,-3000.0,0.000532,120]
[394317635,1763445033988,-3000.0,0.000532,120]
[394317636,1763445033999,-1055.45,0.000532,30]
[394317637,1763445034008,-4682.8096977,0.000534,30]
[394317638,1763445034017,-151.0,0.000534,26]
[394317639,1763445034027,-227.635392,0.00053415,2]
[394317640,1763445034036,-386629.8011,0.0005344,30]
[394317641,1763445034045,-151.22008676,0.00053473,7]
[394317642,1763445034054,-150.0,0.00053473,10]
[394317643,1763445034064,-290.69791992,0.00053587,120]
[394317644,1763445034073,-280.61214473,0.00053599,30]
[394317645,1763445034082,-258.69624046,0.00053599,30]
[394317646,1763445034092,-187.78006524,0.00053599,30]
[394317647,1763445034101,-250.0,0.00053599,30]
[394317648,1763445034111,-500.0,0.00053599,30]
[394317649,1763445034120,-250.0,0.00053643,60]
[394317650,1763445034129,-250.0,0.00053643,60]
[394317651,1763445034139,-181.08010149,0.00053643,60]
[394317652,1763445034148,-250.0,0.00053643,60]
[394317653,1763445034157,-500.0,0.00053643,60]
[394317654,1763445034167,-2300.65404294,0.00053686,28]
[394317655,1763445034176,-500.0,0.00053694,60]
[394317656,1763445034186,-450.20037088,0.00053694,120]
[394317657,1763445034195,-250.0,0.00053697,30]
[394317658,1763445034205,-250.0,0.00053697,30]
[394317659,1763445034214,-174.61919141,0.00053697,30]
[394317660,1763445034223,-250.0,0.00053697,30]
[394317661,1763445034232,-500.0,0.00053697,30]
[394317662,1763445034242,-200.0,0.00053759,120]
[394317663,1763445034252,-151.0,0.000538,28]
[394317664,1763445034261,-501.97357719,0.00053889,24]
[394317665,1763445034271,-374.44488232,0.000539,30]
[394317666,1763445034279,-338.024852,0.000539,30]
[394317667,1763445034289,-273.32764575,0.00054,120]
[394317668,1763445034297,-200.0,0.00054,120]
[394317669,1763445034306,-1000.0,0.00054,120]
[394317670,1763445034316,-10000.0,0.00054,120]
[394317671,1763445034325,-250.0,0.00054021,10]
[394317672,1763445034336,-3000.0,0.000542,120]
[394317673,1763445034346,-3000.0,0.000542,120]
[394317674,1763445034355,-500.0,0.00054242,60]
[394317675,1763445034365,-151.0,0.000544,24]
[394317676,1763445034374,-450.0,0.00054411,120]
[394317677,1763445034383,-250.0,0.00054442,120]
[394317678,1763445034392,-250.0,0.00054442,120]
[394317679,1763445034401,-168.3888056,0.00054442,120]
[394317680,1763445034410,-250.0,0.00054442,120]
[394317681,1763445034419,-500.0,0.00054442,120]
[394317682,1763445034428,-1000.0,0.00054443,120]
[394317683,1763445034438,-250.0,0.00054519,60]
[394317684,1763445034447,-250.0,0.00054519,60]
[394317685,1763445034456,-162.380719,0.00054519,60]
[394317686,1763445034465,-250.0,0.00054519,60]
[394317687,1763445034474,-500.0,0.00054519,60]
[394317688,1763445034483,-262.65749865,0.00054568,10]
[394317689,1763445034492,-250.0,0.00054789,30]
[394317690,1763445034501,-250.0,0.00054789,30]
[394317691,1763445034510,-273.71766149,0.00054789,30]
[394317692,1763445034519,-156.587,0.00054789,30]
[394317693,1763445034528,-252.76352609,0.00054789,30]
[394317694,1763445034539,-158.84440254,0.00054789,30]
[394317695,1763445034547,-250.0,0.00054789,30]
[394317696,1763445034556,-257.26399241,0.00054789,30]
[394317697,1763445034565,-500.0,0.00054789,30]
[394317698,1763445034574,-500.0,0.0005479,60]
[394317699,1763445034583,-8338.83,0.00054794,120]
[394317700,1763445034593,-150.0,0.00054794,2]
[394317701,1763445034602,-300.0,0.00054794,2]
[394317702,1763445034611,-450.0,0.00054794,2]
[394317703,1763445034620,-600.0,0.00054794,2]
[394317704,1763445034629,-750.0,0.00054794,2]
[394317705,1763445034638,-818.80853275,0.00054794,2]
[394317706,1763445034647,-250.0,0.00054794,120]
[394317707,1763445034657,-250.0,0.00054794,120]
[394317708,1763445034666,-250.0,0.00054794,120]
[394317709,1763445034675,-151.0,0.00054794,120]
[394317710,1763445034684,-605.62793135,0.00054794,120]
[394317711,1763445034693,-151.0,0.00054794,120]
[394317712,1763445034702,-151.0,0.00054794,120]
[394317713,1763445034711,-250.0,0.00054794,120]
[394317714,1763445034720,-250.0,0.00054794,120]
[394317715,1763445034729,-500.0,0.00054794,120]
[394317716,1763445034738,-501.8528458,0.00054795,40]
[394317717,1763445034747,-502.51938347,0.00054795,40]
[394317718,1763445034757,-153.0,0.00054795,120]
[394317719,1763445034766,-153.0,0.00054795,120]
[394317720,1763445034775,-153.0,0.00054795,120]
[394317721,1763445034784,-153.0,0.00054795,120]
[394317722,1763445034793,-153.0,0.00054795,120]
[394317723,1763445034803,-153.0,0.00054795,120]
[394317724,1763445034811,-153.0,0.00054795,120]
[394317725,1763445034819,-153.0,0.00054795,120]
[394317726,1763445034828,-153.0,0.00054795,120]
[394317727,1763445034838,-1306.52888448,0.000549,120]
[394317728,1763445034847,-300.0,0.00054973,14]
[394317729,1763445034856,-501.97357719,0.00054978,25]
[394317730,1763445034865,-158.05886093,0.00055,120]
[394317731,1763445034875,-5000.0,0.00055,120]
[394317732,1763445034884,-1000.0,0.00055,120]
[394317733,1763445034892,-32806.61463582,0.00055,120]
[394317734,1763445034901,-20000.0,0.00055,120]
[394317735,1763445034911,-61309.0,0.00055,120]
[394317736,1763445034919,-1000.0,0.00055,120]
[394317737,1763445034929,-2610.0,0.00055,120]
[394317738,1763445035017,-3000.0,0.000552,120]
[394317739,1763445035027,-3081.0,0.000552,120]
[394317740,1763445035036,-163.83,0.000552,14]
[394317741,1763445035047,-552.79,0.000552,14]
[394317742,1763445035056,-3998.93,0.000552,14]
[394317743,1763445035065,-8338.83,0.00055342,120]
[394317745,1763445035074,-409.60455429,0.00055521,14]
[394317746,1763445035083,-500.0,0.00055886,120]
[394317747,1763445035092,-8338.83,0.0005589,120]
[394317748,1763445035101,-508.0,0.00056,2]
[394317749,1763445035110,-1000.0,0.00056,120]
[394317750,1763445035119,-19131.23533517,0.00056,120]
[394317751,1763445035128,-164.0,0.00056,120]
[394317752,1763445035137,-501.97357719,0.00056067,26]
[394317753,1763445035146,-1055.45,0.000561,30]
[394317754,1763445035155,-8338.83,0.00056438,120]
[394317755,1763445035164,-11436.71493787,0.0005644,120]
[394317763,1763445037842,-916.58,0.00038129,10]
[394317764,1763445037851,-2543.33468453,0.00038139,2]
[394317798,1763445039919,-3e-08,0.00038139,2]
[394317974,1763445043340,-625.78505773,0.00038139,2]
[394318026,1763445046066,-21.21852934,0.00038139,2]
[394318027,1763445046178,-886809.66172837,0.00038139,2]
[394318028,1763445046187,-310754.78596213,0.0005644,120]
[394318029,1763445046197,-500.0,0.00056982,120]
[394318030,1763445046206,-8338.83,0.00056986,120]
[394318031,1763445046215,-1000.0,0.00057,120]
[394318032,1763445046225,-150.52349059,0.00057,120]
[394318033,1763445046234,-501.97357719,0.00057156,27]
[394318034,1763445046244,-8338.83,0.00057534,120]
[394318035,1763445046253,-482.26,0.00057556,60]
[394318036,1763445046262,-21063.0,0.00057821,120]
[394318037,1763445046272,-1000.0,0.00058,120]
[394318038,1763445046281,-739.52175,0.00058,120]
[394318039,1763445046291,-5522.4701622,0.00058,30]
[394318040,1763445046300,-20000.0,0.00058,120]
[394318041,1763445046309,-409.9939,0.00058,120]
[394318042,1763445046319,-864.0,0.00058006,120]
[394318043,1763445046328,-500.0,0.00058078,120]
[394318044,1763445046337,-8338.83,0.00058082,120]
[394318045,1763445046349,-501.97357719,0.00058245,28]
[394318046,1763445046358,-8338.83,0.0005863,120]
[394318047,1763445046367,-2300.65404294,0.00058864,28]
[394318048,1763445046376,-69835.18618618,0.00058875,60]
[394318049,1763445046386,-4007.53872824,0.000589,120]
[394318050,1763445046395,-1000.0,0.00059,120]
[394318051,1763445046404,-195.725671,0.0005912,2]
[394318052,1763445046414,-500.0,0.00059174,120]
[394318053,1763445046423,-8338.83,0.00059178,120]
[394318054,1763445046432,-193314.9005,0.000592,120]
[394318055,1763445046441,-501.97357719,0.00059333,29]
[394318056,1763445046449,-2500.0,0.000594,120]
[394318057,1763445046458,-8338.83,0.00059726,120]
[394318058,1763445046467,-381.68572547,0.000598,120]
[394318059,1763445046476,-648.28104628,0.00059894,120]
[394318060,1763445046486,-7006.2939001,0.00059894,120]
[394318061,1763445046495,-7006.2939001,0.00059894,120]
[394318062,1763445046504,-7006.2939001,0.00059894,120]
[394318063,1763445046514,-7006.2939001,0.00059894,120]
[394318064,1763445046523,-7006.2939001,0.00059894,120]
[394318065,1763445046532,-7006.2939001,0.00059894,120]
[394318066,1763445046541,-7006.2939001,0.00059894,120]
[394318067,1763445046550,-7006.2939001,0.00059894,120]
[394318068,1763445046560,-7006.2939001,0.00059894,120]
[394318069,1763445046569,-7006.2939001,0.00059894,120]
[394318070,1763445046579,-190.0,0.000599,120]
[394318071,1763445046588,-500.0,0.00059999,120]
[394318072,1763445046598,-383.43515295,0.00059999,120]
[394318073,1763445046607,-500.0,0.00059999,120]
[394318074,1763445046616,-500.0,0.00059999,120]
[394318075,1763445046626,-500.0,0.00059999,120]
[394318076,1763445046635,-500.0,0.00059999,120]
[394318077,1763445046644,-500.0,0.00059999,120]
[394318078,1763445046653,-500.0,0.00059999,120]
[394318079,1763445046661,-447.97906834,0.00059999,120]
[394318080,1763445046671,-1000.0,0.00059999,120]
[394318081,1763445046680,-8490.20261963,0.0006,120]
[394318082,1763445046689,-10000.0,0.0006,120]
[394318083,1763445046699,-500.0,0.0006,120]
[394318084,1763445046709,-1000.0,0.0006,120]
[394318085,1763445046718,-20064.70500011,0.0006,120]
[394318086,1763445046727,-1708.0,0.0006,120]
[394318087,1763445046736,-20000.0,0.0006,120]
[394318088,1763445046745,-201599.4602219,0.0006,120]
[394318089,1763445046755,-818.67323489,0.0006,120]
[394318090,1763445046764,-50096.22390544,0.0006,120]
[394318091,1763445046773,-179.93433368,0.0006,120]
[394318092,1763445046783,-500.0,0.0006027,120]
[394318093,1763445046792,-8338.83,0.00060273,120]
[394318094,1763445046802,-501.97357719,0.00060422,30]
[394318095,1763445046811,-8338.83,0.00060821,120]
[394318096,1763445046820,-500.0,0.00061366,120]
[394318097,1763445046829,-8338.83,0.00061369,120]
[394318098,1763445046838,-501.97357719,0.00061511,30]
[394318099,1763445046848,-8338.83,0.00061917,120]
[394318100,1763445046857,-4444.66763958,0.00062,120]
[394318101,1763445046866,-218067.55775181,0.00062,15]
[394318112,1763445128122,195.0,0.00035,120]
[394318113,1763445136887,100000.0,0.00038383,30]
[394318119,1763445199000,14655.0,0.00038383,30]
[394318144,1763445255097,3000.0,0.00038545,120]
[394318245,1763445588508,376.1192786,0.00038545,120]
[394318279,1763445786880,205.88717334,0.00038465,20]
[394318298,1763445953131,-167.46458675,0.00025376,2]
[394318299,1763445953154,-150.0,0.00031343,2]
[394318300,1763445953174,-157.67793803,0.00031765,30]
[394318301,1763445953194,-547.716201,0.00032625,38]
[394318302,1763445953216,-150.0,0.00032768,2]
[394318303,1763445953240,-327.32659955,0.00033797,2]
[394318310,1763446026099,-150.0,0.00031298,2]
[394318311,1763446026122,-150.0,0.00032788,2]
[394318312,1763446026143,-217.12769395,0.00033571,2]
[394318313,1763446026166,-125.75663159,0.00033797,3]
[394318315,1763446032074,-307.00569486,0.00033797,3]
[394318316,1763446036092,-1167.23767355,0.00033797,3]
[394318317,1763446036113,-400.0,0.00033797,3]
[394318318,1763446036133,-300.0,0.00033798,3]
[394318319,1763446036153,-880.69041691,0.00033799,3]
[394318326,1763446147091,-150.0,0.00031327,2]
[394318327,1763446147117,-150.0,0.00032819,2]
[394318328,1763446147143,-319.0,0.00033799,3]
[394318329,1763446147164,-394.0,0.00033799,2]
[394318330,1763446147184,-1000.0,0.000338,2]
[394318331,1763446147203,-1000.0,0.000338,2]
[394318332,1763446147221,-656.91044862,0.000338,2]
[394318334,1763446149151,-343.08955138,0.000338,2]
[394318335,1763446149170,-1000.0,0.000338,2]
[394318336,1763446149190,-1000.0,0.000338,2]
[394318337,1763446149211,-150.0,0.00034295,2]
[394318338,1763446149232,-300.0,0.00034475,30]
[394318339,1763446149254,-300.0,0.00034475,30]
[394318340,1763446149274,-167.50295524,0.00034475,30]
[394318341,1763446154146,-132.49704476,0.00034475,30]
[394318342,1763446154168,-300.0,0.00034475,30]
[394318343,1763446154193,-300.0,0.00034475,30]
[394318344,1763446154216,-300.0,0.00034475,30]
[394318345,1763446154237,-300.0,0.00034475,30]
[394318346,1763446154261,-300.0,0.00034475,30]
[394318347,1763446154283,-300.0,0.00034475,30]
[394318348,1763446154309,-300.0,0.00034475,30]
[394318349,1763446154330,-300.0,0.00034475,30]
[394318350,1763446154351,-300.0,0.00034475,30]
[394318351,1763446154372,-300.0,0.00034475,30]
[394318352,1763446154393,-300.0,0.00034475,30]
[394318353,1763446154418,-300.0,0.00034475,30]
[394318354,1763446154439,-188.0,0.00035,120]
[394318355,1763446154460,-600.0,0.00035163,30]
[394318398,1763446232041,-155.50742916,0.00036282,120]
[394318399,1763446232050,-160.997,0.00036283,44]
[394318400,1763446232060,-1200.0,0.00036381,3]
[394318401,1763446232070,-500.0,0.00036382,15]
[394318402,1763446232079,-500.0,0.00036382,15]
[394318403,1763446232088,-500.0,0.00036382,15]
[394318404,1763446232098,-371.97125342,0.00036382,15]
[394318406,1763446232107,-404.9741709,0.00036382,7]
[394318408,1763446232116,-500.0,0.00036382,7]
[394318409,1763446232125,-299.11312444,0.00036382,15]
[394318410,1763446232135,-500.0,0.00036382,15]
[394318411,1763446232144,-500.0,0.00036382,15]
[394318412,1763446232153,-500.0,0.00036382,15]
[394318413,1763446232163,-544.78720686,0.00036382,15]
[394318414,1763446232172,-500.0,0.00036382,15]
[394318415,1763446232181,-522.53043658,0.00036382,15]
[394318416,1763446232190,-500.0,0.00036382,15]
[394318417,1763446232199,-500.0,0.00036382,7]
[394318418,1763446232209,-500.0,0.00036382,15]
[394318419,1763446232218,-500.0,0.00036382,15]
[394318420,1763446232227,-485.06643906,0.00036382,15]
[394318421,1763446232236,-500.0,0.00036382,15]
[394318422,1763446232245,-500.0,0.00036382,15]
[394318423,1763446232254,-180.58812032,0.00036382,7]
[394318424,1763446232263,-633.5,0.00036382,15]
[394318425,1763446232273,-500.0,0.00036382,15]
[394318426,1763446232282,-500.0,0.00036382,7]
[394318427,1763446232291,-500.0,0.00036382,15]
[394318428,1763446232300,-500.0,0.00036382,15]
[394318429,1763446232309,-333.77739697,0.00036382,15]
[394318430,1763446232320,-500.0,0.00036382,7]
[394318431,1763446232333,-500.0,0.00036382,7]
[394318432,1763446232343,-500.0,0.00036382,15]
[394318433,1763446232353,-500.0,0.00036382,7]
[394318434,1763446232363,-500.0,0.00036382,15]
[394318435,1763446232373,-500.0,0.00036382,7]
[394318436,1763446232382,-500.0,0.00036382,15]
[394318437,1763446232391,-500.0,0.00036382,15]
[394318438,1763446232401,-500.0,0.00036382,7]
[394318439,1763446232411,-500.0,0.00036382,15]
[394318440,1763446232420,-500.0,0.00036382,15]
[394318441,1763446232430,-500.0,0.00036382,7]
[394318442,1763446232439,-380.10255314,0.00036382,15]
[394318443,1763446232448,-500.0,0.00036382,7]
[394318444,1763446232457,-500.0,0.00036382,7]
[394318445,1763446232466,-500.0,0.00036382,15]
[394318446,1763446232475,-500.0,0.00036382,7]
[394318447,1763446232485,-500.0,0.00036382,15]
[394318448,1763446232494,-500.0,0.00036382,7]
[394318449,1763446232504,-500.0,0.00036382,15]
[394318450,1763446232513,-500.0,0.00036382,15]
[394318451,1763446232523,-500.0,0.00036382,7]
[394318452,1763446232532,-500.0,0.00036382,7]
[394318453,1763446232542,-532.71720253,0.00036387,30]
[394318455,1763446232552,-500.0,0.00036388,15]
[394318456,1763446232563,-11237.3631287,0.00036389,2]
[394318457,1763446232572,-500.0,0.00036662,15]